bitfinex/quotes_SOLUSD_20240718
["timestamp","ask_amount","ask_price","bid_price","bid_amount"]
[1721270195611,16.5707,158.39,158.34,0.8099708]
[1721270196206,45.0,158.38,158.34,0.8099708]
[1721270196623,51.314,158.38,158.34,0.8099708]
[1721270196922,45.0,158.38,158.34,7.1253708]
[1721270197318,45.0,158.38,158.34,0.8099708]
[1721270197639,51.3142,158.38,158.34,0.8099708]
[1721270198233,6.3144,158.37,158.34,0.8099708]
[1721270198533,45.0,158.38,158.34,0.8099708]
[1721270198940,6.3143,158.37,158.34,0.8099708]
[1721270199814,45.0,158.38,158.34,0.8099708]
[1721270200015,51.314,158.38,158.34,0.8099708]
[1721270200518,45.0,158.38,158.34,0.8099708]
[1721270200932,6.3143,158.37,158.34,0.8099708]
[1721270201125,45.0,158.36,158.34,0.8099708]
[1721270201337,51.3147,158.36,158.34,0.8099708]
[1721270201636,6.3151,158.35,158.34,0.8099708]
[1721270201810,16.6432,158.34,158.25,31.5953]
[1721270202015,67.9589,158.34,158.27,6.3179]
[1721270202315,92.2232,158.34,158.28,15.794]
[1721270202516,92.2232,158.34,158.28,12.794]
[1721270202731,47.2232,158.34,158.31,6.3166]
[1721270202921,47.2232,158.34,158.28,12.794]
[1721270203129,47.2232,158.34,158.3,6.317]
[1721270204254,45.0,158.33,158.28,12.794]
[1721270204423,45.0,158.33,158.28,19.1118]
[1721270204752,6.3164,158.32,158.26,6.3186]
[1721270206021,6.317,158.31,158.25,15.7977]
[1721270206247,45.0,158.3,158.25,22.1164]
[1721270209351,51.3173,158.3,158.25,15.7977]
[1721270209528,45.0,158.3,158.25,15.7977]
[1721270209722,45.0,158.3,158.26,6.3183]
[1721270209935,16.6432,158.34,158.25,15.7977]
[1721270210231,51.3159,158.33,158.27,6.3181]
[1721270210625,51.3159,158.33,158.25,15.7977]
[1721270210626,16.6432,158.34,158.28,1.26344489]
[1721270210927,16.6432,158.34,158.29,22.1101]
[1721270211125,16.6432,158.34,158.29,22.1104]
[1721270211348,6.3163,158.32,158.26,17.05977671]
[1721270211548,6.316,158.33,158.27,6.3183]
[1721270211754,6.316,158.33,158.26,15.7964]
[1721270211961,22.9587,158.34,158.28,6.3175]
[1721270212159,51.3159,158.33,158.27,6.3182]
[1721270212452,6.3167,158.32,158.26,15.7964]
[1721270212843,6.3167,158.32,158.26,22.1148]
[1721270214035,6.3167,158.31,158.26,22.1148]
[1721270214639,6.3173,158.3,158.23,15.7997]
[1721270214848,6.3173,158.3,158.24,6.3191]
[1721270215136,6.3173,158.3,158.25,6.3191]
[1721270215332,45.0,158.33,158.25,15.797]
[1721270215553,45.0,158.33,158.28,6.3177]
[1721270215851,45.0,158.33,158.25,15.797]
[1721270216054,45.0,158.33,158.28,6.3178]
[1721270216257,45.0,158.33,158.29,6.3174]
[1721270216554,51.316,158.33,158.27,22.1133]
[1721270216859,45.0,158.33,158.28,6.3177]
[1721270217156,51.3159,158.33,158.27,22.1133]
[1721270217658,51.3163,158.33,158.27,22.1133]
[1721270217856,45.0,158.33,158.28,6.3179]
[1721270218063,22.9588,158.34,158.29,6.3171]
[1721270218064,16.6432,158.34,158.29,6.3171]
[1721270218735,12.4299,158.35,158.3,1.26336494]
[1721270218736,6.1148,158.35,158.3,1.26336494]
[1721270219050,53.4481,158.39,158.31,15.7912]
[1721270219249,22.8681,158.39,158.33,15.7891]
[1721270219434,22.8681,158.39,158.27,16.0171]
[1721270219435,22.7747,158.43,158.34,1.2629734]
[1721270219759,22.7747,158.43,158.28,49.52]
[1721270219760,22.6842,158.43,158.35,15.787]
[1721270220262,6.3123,158.42,158.36,6.3146]
[1721270220434,28.9961,158.43,158.37,6.3142]
[1721270220641,22.6842,158.43,158.35,15.787]
[1721270220839,6.3131,158.4,158.35,15.787]
[1721270221144,6.3132,158.4,158.29,20.0]
[1721270221450,6.3128,158.41,158.33,15.789]
[1721270221763,6.3128,158.41,158.29,51.5859]
[1721270221764,6.3124,158.42,158.36,6.3146]
[1721270221935,6.3123,158.42,158.36,6.3146]
[1721270222141,236.9783,158.44,158.38,6.3136]
[1721270222437,30.58,158.5,158.4,6.3128]
[1721270222646,30.58,158.5,158.41,6.3127]
[1721270222946,30.58,158.5,158.41,15.7809]
[1721270223331,6.3102,158.48,158.42,6.3122]
[1721270223537,30.58,158.5,158.41,15.7809]
[1721270223867,30.58,158.5,158.38,15.7845]
[1721270224048,6.3108,158.46,158.38,15.7845]
[1721270224359,45.0,158.45,158.38,15.7845]
[1721270224969,45.0,158.45,158.4,6.3129]
[1721270225164,45.0,158.45,158.38,15.7845]
[1721270225486,6.312,158.43,158.38,15.7845]
[1721270225773,51.3107,158.46,158.38,15.7845]
[1721270225947,6.3112,158.45,158.38,15.7845]
[1721270226148,6.3115,158.44,158.38,22.098]
[1721270226349,6.3115,158.44,158.38,15.7845]
[1721270226666,6.3111,158.45,158.38,15.7845]
[1721270226867,6.3111,158.45,158.39,6.3134]
[1721270227457,45.0,158.46,158.35,15.7875]
[1721270227864,6.3126,158.42,158.36,6.3146]
[1721270228063,45.0,158.46,158.35,15.7875]
[1721270228242,6.312,158.43,158.37,6.3142]
[1721270228447,51.3123,158.42,158.36,6.3146]
[1721270228673,45.0,158.46,158.35,15.7875]
[1721270228851,6.3132,158.4,158.35,15.7875]
[1721270229051,6.3132,158.4,158.34,6.3154]
[1721270229774,6.3127,158.41,158.35,6.315]
[1721270229977,45.0,158.4,158.35,6.315]
[1721270230378,15.7747,158.49,158.36,1.26291597]
[1721270230553,15.7747,158.49,158.33,31.5784]
[1721270230750,6.3119,158.43,158.36,15.7861]
[1721270230950,6.3119,158.43,158.37,6.3142]
[1721270231262,15.7747,158.49,158.39,15.7837]
[1721270231576,6.3119,158.44,158.38,6.3135]
[1721270231758,6.312,158.43,158.37,6.3142]
[1721270232155,6.312,158.43,158.36,15.7865]
[1721270232156,15.7768,158.46,158.33,15.7897]
[1721270232349,15.7768,158.46,158.36,6.3146]
[1721270232546,45.0,158.45,158.34,6.3152]
[1721270232768,6.3124,158.42,158.36,6.3147]
[1721270233183,6.3124,158.42,158.36,7.57743409]
[1721270233874,6.312,158.43,158.37,6.3142]
[1721270234171,6.3119,158.43,158.37,17.04774949]
[1721270234373,6.3119,158.43,158.37,15.785]
[1721270234586,15.7755,158.48,158.38,1.26264449]
[1721270234768,34.51,158.5,158.38,1.26264449]
[1721270234976,6.3115,158.44,158.38,6.3138]
[1721270235570,15.7746,158.49,158.38,6.3138]
[1721270235771,6.3115,158.44,158.39,1.26251686]
[1721270236086,15.7746,158.49,158.4,1.26245098]
[1721270236087,6.3112,158.45,158.4,1.26245098]
[1721270236284,47.64420408,158.5,158.41,1.26243768]
[1721270236496,6.3106,158.47,158.41,6.3126]
[1721270236784,6.3111,158.45,158.4,15.7818]
[1721270236986,6.54507617,158.5,158.4,17.04422018]
[1721270237176,6.54507617,158.5,158.41,1.26230417]
[1721270237487,6.3107,158.47,158.4,22.0945]
[1721270237784,6.3107,158.46,158.4,22.0945]
[1721270237977,6.54507617,158.5,158.41,7.57491354]
[1721270238164,45.0,158.49,158.4,22.0948]
[1721270238366,6.3113,158.45,158.4,15.7818]
[1721270238590,45.0,158.49,158.4,23.35722191]
[1721270238591,6.3107,158.46,158.4,23.35722191]
[1721270238879,6.3112,158.45,158.4,15.7818]
[1721270239789,6.3112,158.45,158.4,22.0948]
[1721270240088,6.3118,158.44,158.37,15.7857]
[1721270240264,6.3119,158.43,158.38,6.3138]
[1721270240468,6.3123,158.42,158.37,22.0999]
[1721270240989,6.3119,158.43,158.37,22.0999]
[1721270241372,6.3123,158.42,158.37,15.7857]
[1721270242476,6.3128,158.41,158.35,6.315]
[1721270242785,6.3289,158.42,158.34,15.7886]
[1721270242966,45.0,158.41,158.33,6.3158]
[1721270243291,6.3139,158.38,158.32,6.3162]
[1721270243499,6.3139,158.38,158.32,7.57925868]
[1721270243863,6.3136,158.39,158.33,6.3159]
[1721270244076,45.0,158.38,158.33,6.3159]
[1721270244681,51.3139,158.38,158.33,6.3159]
[1721270244884,6.3139,158.38,158.33,6.3159]
[1721270245202,6.3139,158.38,158.32,6.3162]
[1721270247096,22.1105,158.42,158.3,15.7921]
[1721270247276,60.6237,158.41,158.3,15.7921]
[1721270248084,6.315,158.36,158.3,22.109]
[1721270248677,6.3151,158.35,158.3,15.7921]
[1721270249818,45.0,158.34,158.3,15.7921]
[1721270251392,6.3147,158.36,158.3,22.1091]
[1721270252699,6.2716,158.37,158.3,22.1091]
[1721270252905,6.3159,158.33,158.27,37.301]
[1721270253216,6.3159,158.33,158.27,22.1138]
[1721270253795,6.3159,158.33,158.28,6.3179]
[1721270254224,6.3159,158.33,158.27,22.1138]
[1721270258536,6.3152,158.35,158.29,6.3172]
[1721270258825,66.4096,158.36,158.29,15.7928]
[1721270259013,66.4096,158.36,158.3,6.3171]
[1721270259014,6.3152,158.35,158.3,6.3171]
[1721270259335,6.3152,158.35,158.29,22.1102]
[1721270260615,6.3152,158.35,158.3,6.317]
[1721270262036,6.3155,158.34,158.29,22.1102]
[1721270262205,60.0949,158.36,158.28,6.3178]
[1721270262206,45.0,158.33,158.28,6.3178]
[1721270262527,6.3158,158.34,158.28,6.3178]
[1721270262702,45.0,158.33,158.28,6.3178]
[1721270264315,51.316,158.33,158.28,6.3178]
[1721270265331,45.0,158.33,158.28,6.3178]
[1721270267041,45.0,158.33,158.27,6.3183]
[1721270267930,6.3163,158.32,158.26,22.1151]
[1721270268258,51.316,158.33,158.27,6.3181]
[1721270268532,6.3155,158.34,158.26,15.7965]
[1721270268710,15.0949,158.36,158.28,15.7941]
[1721270268910,45.0,158.35,158.28,15.7941]
[1721270269132,51.3154,158.35,158.29,6.3174]
[1721270270035,51.3154,158.35,158.3,6.317]
[1721270270237,21.4097,158.36,158.31,6.3167]
[1721270270539,6.3139,158.38,158.33,6.3158]
[1721270271245,6.3136,158.39,158.34,6.3153]
[1721270271531,21.6889,158.41,158.26,85.8403]
[1721270271532,21.6889,158.41,158.32,31.0083]
[1721270271736,30.69,158.44,158.32,31.0083]
[1721270271737,30.69,158.44,158.35,15.7878]
[1721270272035,22.1632,158.45,158.36,1.26281435]
[1721270272233,6.3134,158.4,158.34,6.3154]
[1721270272941,52.8532,158.45,158.35,1.26285306]
[1721270273116,6.3128,158.41,158.35,6.315]
[1721270275039,6.3124,158.42,158.36,6.3146]
[1721270275334,6.3124,158.42,158.37,6.3142]
[1721270276842,6.3124,158.42,158.36,6.3146]
[1721270277443,6.3124,158.42,158.34,15.7879]
[1721270277444,22.1632,158.45,158.37,17.04820641]
[1721270277622,6.312,158.43,158.38,1.26259516]
[1721270278031,51.3115,158.44,158.38,7.57629516]
[1721270278536,6.3115,158.44,158.38,7.57629516]
[1721270279342,22.1632,158.45,158.38,1.26259516]
[1721270279519,6.5608,158.45,158.37,15.7855]
[1721270279723,45.0,158.44,158.37,15.7855]
[1721270279936,6.3126,158.42,158.37,15.7855]
[1721270280317,6.3119,158.43,158.38,6.3138]
[1721270280836,12.8723,158.45,158.39,6.3135]
[1721270281038,20.0,158.44,158.39,6.3135]
[1721270281235,19.5,158.44,158.39,6.3135]
[1721270281850,19.5,158.44,158.4,1.26244798]
[1721270282239,19.5,158.44,158.38,6.3138]
[1721270282436,6.3119,158.43,158.37,22.0997]
[1721270283150,36.1419,158.44,158.34,15.7884]
[1721270283352,45.0,158.43,158.35,6.315]
[1721270283556,5.8127,158.42,158.35,6.315]
[1721270283741,42.4538,158.44,158.38,6.3136]
[1721270283934,36.1419,158.44,158.39,23.35950664]
[1721270284248,36.1419,158.44,158.39,22.097]
[1721270284656,19.5,158.44,158.4,7.57541285]
[1721270285165,6.3119,158.43,158.38,6.3135]
[1721270285331,6.3119,158.43,158.37,21.6225]
[1721270285951,25.8116,158.44,158.38,6.3138]
[1721270286152,25.8116,158.44,158.39,6.3134]
[1721270286651,6.312,158.43,158.37,21.6224]
[1721270286950,19.5,158.44,158.37,21.6224]
[1721270287755,6.3119,158.43,158.38,6.3138]
[1721270288453,6.3119,158.43,158.36,15.7864]
[1721270288454,6.3119,158.43,158.37,6.3143]
[1721270288834,6.3119,158.43,158.38,6.3138]
[1721270289149,19.5,158.44,158.39,6.3135]
[1721270292650,6.0303,158.49,158.45,7.57282341]
[1721270292866,6.3087,158.52,158.46,7.57249702]
[1721270293025,21.3458,158.53,158.47,6.3102]
[1721270293230,21.3458,158.53,158.48,1.26184547]
[1721270293435,21.3458,158.53,158.47,6.3102]
[1721270293631,21.3458,158.53,158.48,1.26183441]
[1721270294059,21.3458,158.53,158.47,6.3102]
[1721270294060,21.3458,158.53,158.49,1.26182279]
[1721270294232,21.3458,158.53,158.48,6.3099]
[1721270294542,27.6537,158.53,158.47,22.086]
[1721270295055,27.6537,158.53,158.48,1.26171742]
[1721270295253,21.3458,158.53,158.48,1.26171742]
[1721270296036,21.3458,158.53,158.48,7.57141742]
[1721270296244,6.14,158.57,158.5,15.7728]
[1721270296450,6.14,158.57,158.51,1.26149498]
[1721270296656,6.14,158.57,158.52,1.26150788]
[1721270297359,6.14,158.57,158.52,7.5697051]
[1721270297955,6.14,158.57,158.51,6.3084]
[1721270298159,6.3067,158.56,158.5,22.0818]
[1721270298347,6.14,158.57,158.47,15.7755]
[1721270298642,20.0,158.56,158.47,15.7755]
[1721270299144,6.3072,158.55,158.49,6.3094]
[1721270299659,20.0,158.56,158.5,7.57073842]
[1721270300661,20.0,158.56,158.49,15.7731]
[1721270301038,20.0,158.56,158.52,6.3081]
[1721270301256,26.3069,158.56,158.5,6.3089]
[1721270301461,20.0,158.56,158.49,15.7731]
[1721270302056,6.3076,158.54,158.49,15.7731]
[1721270302236,20.0,158.56,158.49,15.7731]
[1721270302440,45.0,158.55,158.46,16.3446]
[1721270302692,45.0,158.55,158.49,6.3095]
[1721270302859,20.0,158.54,158.45,6.3111]
[1721270303161,6.3092,158.5,158.44,6.3111]
[1721270303356,6.343,158.51,158.45,6.3109]
[1721270303763,12.6518,158.51,158.45,6.3109]
[1721270303943,6.3091,158.5,158.44,6.3115]
[1721270304143,6.3091,158.5,158.44,7.57352657]
[1721270304539,12.6518,158.51,158.45,6.3111]
[1721270305173,6.343,158.51,158.46,6.3107]
[1721270305461,6.343,158.51,158.46,6.3106]
[1721270305670,6.343,158.51,158.48,6.3097]
[1721270305861,16.3027,158.53,158.48,6.3097]
[1721270306044,16.3027,158.53,158.49,6.3095]
[1721270307136,16.3027,158.53,158.49,7.57121119]
[1721270307766,16.3027,158.53,158.49,1.26171119]
[1721270307967,22.6107,158.53,158.48,1.26173558]
[1721270308170,16.3027,158.53,158.49,7.57113558]
[1721270308370,6.1481,158.55,158.5,6.3089]
[1721270308552,20.0,158.54,158.51,1.26153673]
[1721270308990,6.1481,158.55,158.52,7.56986192]
[1721270309142,15.5474,158.57,158.52,1.26156192]
[1721270309364,6.3316,158.59,158.52,1.26156192]
[1721270309941,6.306,158.58,158.53,6.3079]
[1721270310141,6.306,158.58,158.54,1.26138059]
[1721270310365,6.3316,158.59,158.55,1.26128423]
[1721270311088,12.6373,158.59,158.53,6.3079]
[1721270311450,6.3059,158.58,158.53,6.3079]
[1721270311652,12.6372,158.59,158.54,1.26127471]
[1721270311862,6.3064,158.57,158.51,15.7709]
[1721270312568,6.3064,158.57,158.51,22.0793]
[1721270312755,6.3316,158.59,158.48,31.0004]
[1721270312949,6.3075,158.54,158.48,22.0842]
[1721270313175,6.3079,158.53,158.48,15.7745]
[1721270313553,6.3074,158.55,158.49,6.3093]
[1721270313763,6.3076,158.54,158.49,6.3093]
[1721270314049,6.3081,158.53,158.48,15.7745]
[1721270314268,6.3083,158.52,158.46,6.3104]
[1721270315150,6.4503,158.51,158.46,6.3106]
[1721270315564,6.4503,158.51,158.47,1.261975]
[1721270315756,6.4503,158.51,158.48,6.3098]
[1721270316060,6.4503,158.51,158.47,6.3102]
[1721270316776,6.4503,158.51,158.48,6.3098]
[1721270318480,30.69,158.55,158.49,6.3093]
[1721270318481,12.3799,158.55,158.49,6.3093]
[1721270318672,20.0,158.54,158.49,6.3093]
[1721270318868,20.0,158.54,158.5,6.3091]
[1721270319072,20.0,158.54,158.49,1.26168601]
[1721270319265,20.0,158.54,158.5,6.3091]
[1721270320479,20.0,158.54,158.49,7.57108601]
[1721270321083,26.3077,158.54,158.49,7.57108601]
[1721270321387,6.3091,158.51,158.45,15.7777]
[1721270321755,6.3084,158.52,158.47,6.3101]
[1721270321974,20.0,158.51,158.48,6.3098]
[1721270322596,20.0,158.52,158.48,6.3098]
[1721270322963,20.0,158.53,158.48,6.3098]
[1721270323163,26.3081,158.53,158.47,22.0855]
[1721270323466,6.3084,158.52,158.47,22.0855]
[1721270323700,6.3084,158.52,158.47,15.7753]
[1721270323989,20.0,158.51,158.48,1.26177315]
[1721270324172,20.0,158.51,158.48,6.3098]
[1721270324366,20.0,158.52,158.48,6.3098]
[1721270324987,20.0,158.52,158.47,22.0855]
[1721270325877,26.3084,158.52,158.47,15.7753]
[1721270326573,20.0,158.52,158.47,22.0855]
[1721270327588,20.0,158.52,158.49,6.3093]
[1721270327792,6.0724,158.55,158.5,7.57063401]
[1721270327793,20.0,158.54,158.5,7.57063401]
[1721270328001,6.0724,158.55,158.52,6.3083]
[1721270328291,15.06500844,158.59,158.53,1.26146487]
[1721270328292,21.5122,158.57,158.53,1.26146487]
[1721270328870,6.3064,158.57,158.53,1.26146487]
[1721270329266,6.3064,158.57,158.52,1.26138968]
[1721270329512,6.306,158.58,158.53,1.26136762]
[1721270329664,6.306,158.58,158.53,7.56916762]
[1721270330891,6.3181,158.6,158.51,22.0794]
[1721270331194,6.3067,158.56,158.51,15.771]
[1721270331580,6.3067,158.56,158.51,22.0796]
[1721270331776,6.3064,158.57,158.51,22.0796]
[1721270332175,6.3181,158.6,158.55,6.3071]
[1721270332482,6.3181,158.6,158.56,1.2612905]
[1721270334182,12.6233,158.6,158.56,1.2612905]
[1721270334515,6.3055,158.59,158.55,1.2611949]
[1721270334689,6.3055,158.59,158.53,22.0769]
[1721270334997,6.3059,158.58,158.53,15.7691]
[1721270335225,6.3059,158.58,158.53,22.077]
[1721270335494,6.3056,158.59,158.53,22.077]
[1721270336120,6.3181,158.6,158.5,15.7725]
[1721270336312,6.3063,158.57,158.51,6.3087]
[1721270337208,60.06765623,158.59,158.5,22.0816]
[1721270337393,6.3068,158.56,158.5,22.0816]
[1721270337595,6.3068,158.56,158.51,6.3086]
[1721270337810,6.3064,158.57,158.51,6.3086]
[1721270338015,20.0,158.56,158.51,6.3086]
[1721270338357,26.3068,158.56,158.5,22.0815]
[1721270339486,20.0,158.56,158.51,6.3086]
[1721270341704,20.0,158.56,158.5,15.7725]
[1721270341705,26.3068,158.56,158.5,22.0815]
[1721270341900,20.0,158.56,158.51,6.3086]
[1721270342110,20.0,158.57,158.54,6.3075]
[1721270342608,20.0,158.57,158.53,1.26138717]
[1721270342799,15.06493167,158.58,158.55,6.3068]
[1721270342993,6.3181,158.6,158.55,1.26133212]
[1721270343205,6.3181,158.6,158.56,6.3067]
[1721270343405,6.304,158.63,158.57,7.56731468]
[1721270343617,12.8858,158.64,158.59,6.3054]
[1721270343807,6.5822,158.64,158.6,7.56604059]
[1721270344613,6.5822,158.64,158.6,6.3051]
[1721270344794,12.8858,158.64,158.58,21.89484277]
[1721270345306,6.5822,158.64,158.6,6.305]
[1721270346296,6.5822,158.64,158.59,6.3054]
[1721270346721,6.5822,158.64,158.58,15.58904277]
[1721270347045,6.3041,158.63,158.58,21.89484277]
[1721270347208,12.8858,158.64,158.59,6.3055]
[1721270347528,12.8858,158.64,158.59,1.26091356]
[1721270347529,6.5822,158.64,158.59,1.26091356]
[1721270348022,6.5822,158.64,158.59,6.3054]
[1721270348910,6.5822,158.64,158.59,7.56625688]
[1721270349323,6.5822,158.64,158.59,6.3054]
[1721270349908,6.5822,158.64,158.58,21.89494277]
[1721270350912,12.886,158.64,158.58,21.89494277]
[1721270351300,12.886,158.64,158.59,6.3054]
[1721270351497,12.886,158.64,158.58,15.58904277]
[1721270351701,12.886,158.64,158.58,21.89494277]
[1721270352627,6.5822,158.64,158.56,6.3063]
[1721270352824,6.3047,158.61,158.56,6.3063]
[1721270353200,6.3051,158.6,158.55,15.7677]
[1721270353400,45.0,158.63,158.55,15.7677]
[1721270353598,6.3048,158.61,158.55,22.0744]
[1721270353801,6.3048,158.61,158.56,6.3066]
[1721270354021,6.3043,158.62,158.56,6.3066]
[1721270355015,6.3043,158.62,158.57,6.3062]
[1721270355221,51.304,158.63,158.58,6.3059]
[1721270355427,20.0,158.62,158.58,6.3059]
[1721270355802,20.0,158.62,158.57,22.0715]
[1721270356013,26.3044,158.62,158.57,15.7653]
[1721270356209,26.3044,158.62,158.57,22.0715]
[1721270356429,20.0,158.62,158.57,22.0715]
[1721270357010,26.3044,158.62,158.57,15.7653]
[1721270357529,20.0,158.62,158.57,22.0714]
[1721270357707,26.3044,158.62,158.57,15.7653]
[1721270357907,20.0,158.62,158.57,15.7653]
[1721270358528,26.3044,158.62,158.57,22.0715]
[1721270359430,20.0,158.62,158.54,15.7683]
[1721270359636,6.3064,158.57,158.51,6.3083]
[1721270359934,6.3074,158.55,158.5,15.7719]
[1721270361011,45.0,158.54,158.46,15.7767]
[1721270361212,45.0,158.54,158.48,6.3095]
[1721270361632,45.0,158.54,158.49,6.3095]
[1721270362540,45.0,158.54,158.46,15.7767]
[1721270362541,51.3076,158.54,158.48,6.3099]
[1721270362910,45.0,158.54,158.48,6.3099]
[1721270363109,45.0,158.54,158.49,6.3093]
[1721270363338,43.3024,158.57,158.5,6.309]
[1721270363510,71.3067,158.56,158.5,6.3091]
[1721270363710,6.3075,158.55,158.49,1.26169582]
[1721270364133,6.3075,158.55,158.49,7.57099582]
[1721270365036,45.0,158.56,158.5,6.3091]
[1721270365334,20.0,158.55,158.5,6.3091]
[1721270365543,20.0,158.55,158.51,6.3085]
[1721270365713,16.5665,158.56,158.48,15.7739]
[1721270365921,6.3079,158.54,158.48,15.7739]
[1721270366238,16.5665,158.56,158.48,15.7739]
[1721270366239,26.3079,158.53,158.48,15.7739]
[1721270367230,26.3079,158.53,158.44,15.6521]
[1721270367231,6.3083,158.52,158.45,6.311]
[1721270367422,6.3094,158.5,158.44,22.0894]
[1721270367623,6.3712,158.52,158.44,15.7779]
[1721270367848,6.3096,158.49,158.44,15.7779]
[1721270368335,22.8761,158.49,158.44,15.7779]
[1721270368535,22.8761,158.49,158.42,6.3119]
[1721270368724,6.3099,158.48,158.42,6.3119]
[1721270368918,6.3099,158.48,158.41,15.7817]
[1721270368919,16.5665,158.49,158.44,6.3114]
[1721270370058,22.876,158.49,158.43,6.3119]
[1721270370226,16.5665,158.49,158.35,46.3157]
[1721270370426,6.3111,158.46,158.39,6.3135]
[1721270370734,6.3111,158.46,158.4,6.3131]
[1721270373373,6.3119,158.44,158.38,22.0985]
[1721270374531,6.0327,158.47,158.38,22.0985]
[1721270374735,6.3111,158.45,158.38,22.0985]
[1721270376357,6.3119,158.43,158.36,6.3146]
[1721270377653,6.3119,158.43,158.37,6.3141]
[1721270380761,0.65,158.45,158.37,15.7858]
[1721270380938,6.3115,158.44,158.38,6.3135]
[1721270381134,65.0,158.43,158.38,6.3135]
[1721270381741,87.0304,158.43,158.37,22.1001]
[1721270383655,80.7185,158.43,158.37,22.1001]
[1721270384339,87.0304,158.43,158.37,22.1001]
[1721270385326,6.3124,158.42,158.37,15.7858]
[1721270385529,87.0304,158.43,158.37,22.1]
[1721270386761,80.7185,158.43,158.37,22.1]
[1721270386935,35.7185,158.43,158.38,7.5763353]
[1721270387366,15.7185,158.43,158.4,6.3129]
[1721270387536,15.7185,158.43,158.4,1.26242195]
[1721270387728,15.7185,158.43,158.38,6.3139]
[1721270388161,15.7185,158.43,158.39,15.7829]
[1721270389359,15.7185,158.43,158.39,22.0963]
[1721270390064,22.0305,158.43,158.36,15.7867]
[1721270390238,15.7185,158.43,158.38,6.3138]
[1721270390961,15.7185,158.43,158.39,6.3134]
[1721270391843,15.7185,158.43,158.39,7.57592863]
[1721270392044,15.7185,158.43,158.4,1.26252863]
[1721270392252,6.3931,158.42,158.38,15.7839]
[1721270394268,21.7231,158.42,158.38,15.7839]
[1721270394743,15.33,158.41,158.38,15.7839]
[1721270396473,15.33,158.41,158.38,22.0977]
[1721270397771,21.7231,158.42,158.38,22.0977]
[1721270400678,15.33,158.41,158.38,22.0977]
[1721270400844,6.3931,158.42,158.38,15.7839]
[1721270401268,15.33,158.41,158.38,15.7839]
[1721270402374,15.33,158.44,158.4,22.0945]
[1721270402580,15.33,158.44,158.41,6.3125]
[1721270402871,15.98,158.45,158.42,7.57453282]
[1721270403092,15.98,158.45,158.42,6.3122]
[1721270403266,15.98,158.45,158.41,6.3126]
[1721270404772,0.65,158.45,158.41,6.3126]
[1721270404956,15.98,158.45,158.41,6.3126]
[1721270406275,15.98,158.45,158.4,15.7818]
[1721270406456,6.3118,158.44,158.37,31.1155]
[1721270406650,6.3119,158.43,158.38,6.3138]
[1721270406872,6.3115,158.44,158.38,6.3138]
[1721270407177,0.65,158.45,158.39,6.3134]
[1721270407370,65.65,158.45,158.39,6.3134]
[1721270407675,71.9613,158.45,158.39,6.3134]
[1721270407856,15.33,158.43,158.39,6.3134]
[1721270408053,15.33,158.43,158.38,6.3138]
[1721270408361,6.3115,158.44,158.38,6.3138]
[1721270409048,6.3115,158.44,158.38,7.57632583]
[1721270409445,6.3115,158.44,158.38,6.3138]
[1721270409955,6.3115,158.44,158.38,7.57635915]
[1721270410672,15.33,158.39,158.34,15.7887]
[1721270410866,15.33,158.39,158.34,31.1187]
[1721270411270,15.33,158.4,158.35,6.315]